{"text_format":"1","workbook":"xlsx","n_sheets":2,"sheets":["Sheet1","Sheet3"],"not_rendered":{"charts":0,"images":0,"macros":1,"external_links":0,"defined_names":0,"comments":0,"pivot_tables":0},"unopened":[],"bounds":{"document_bytes":16777216,"sheet_cells":100000,"rows_first":2000,"rows_last":500,"rows_between":2000,"halvings":0,"cell_chars":16384,"cell_head_chars":4096},"cells_cut":0,"cells_raw":0,"read":"whole","date_system":"1900"}

{"sheet":"Sheet1","index":0,"n_rows":16,"n_cols":12,"rows_kept":16,"cut":false,"hidden":false,"merged":[]}
["Text",null,null,null,null,null,null,null,null,null,null,"Values"]
[{"$f":"IF(L2<50,\"\",\"Above 50\")","v":""},null,null,null,null,null,null,null,null,null,null,16]
[{"$f":"IF(L3<50,\"\",\"Above 50\")","v":"Above 50"},null,null,null,null,null,null,null,null,null,null,58]
["Above 50",null,null,null,null,null,null,null,null,null,null,77]
["",null,null,null,null,null,null,null,null,null,null,6]
["Above 50",null,null,null,null,null,null,null,null,null,null,83]
["",null,null,null,null,null,null,null,null,null,null,18]
["",null,null,null,null,null,null,null,null,null,null,32]
["",null,null,null,null,null,null,null,null,null,null,15]
["",null,null,null,null,null,null,null,null,null,null,17]
["",null,null,null,null,null,null,null,null,null,null,21]
["Above 50",null,null,null,null,null,null,null,null,null,null,85]
["Above 50",null,null,null,null,null,null,null,null,null,null,54]
["",null,null,null,null,null,null,null,null,null,null,15]
["",null,null,null,null,null,null,null,null,null,null,12]
["",null,null,null,null,null,null,null,null,null,null,16]

{"sheet":"Sheet3","index":1,"n_rows":16,"n_cols":2,"rows_kept":16,"cut":false,"hidden":false,"merged":[]}
["Values","Text"]
[16,{"$f":"IF(A2<50,\"\",\"Above 50\")","v":""}]
[58,{"$f":"IF(A3<50,\"\",\"Above 50\")","v":"Above 50"}]
[77,"Above 50"]
[6,""]
[83,"Above 50"]
[18,""]
[32,""]
[15,""]
[17,""]
[21,""]
[85,"Above 50"]
[54,"Above 50"]
[15,""]
[12,""]
[16,""]